[Event "Rohde op 12th"]
[Site "Sautron"]
[Date "2012.11.02"]
[Round "8"]
[White "Rusev, Krasimir"]
[Black "Ider, Borya"]
[Result "1/2-1/2"]
[ECO "A13"]
[WhiteElo "2549"]
[BlackElo "2394"]
[Annotator "RR"]
[PlyCount "185"]
[EventDate "2012.10.27"]
[EventType "swiss"]
[EventRounds "9"]
[EventCountry "FRA"]
[SourceTitle "EXT 2014"]
[Source "ChessBase"]
[SourceDate "2013.11.20"]
[SourceVersion "1"]
[SourceVersionDate "2013.11.20"]
[SourceQuality "1"]
[TimeControl "40/5400+30:1800+30"]
[WhiteClock "1:30:00"]
[BlackClock "1:30:00"]

1. Nf3 {[%emt 0:00:00]} e6 {[%emt 0:00:00]} 2. c4 {[%emt 0:00:00]} d5 {[%emt 0:
00:00]} 3. g3 {[%emt 0:00:00]} Nf6 {[%emt 0:00:03]} 4. b3 {[%emt 0:00:00]} Bd6
{[%emt 0:02:31] Une ligne secondaire} (4... Be7) (4... c5 {[%cal Gd5d4]}) 5.
Bb2 {[%emt 0:00:18]} Nbd7 {[%emt 0:00:19]} (5... c6 6. Bg2 Nbd7 7. O-O O-O 8.
d4 {Retombe sur une Catalane fermée}) 6. Bg2 {[%emt 0:03:56]} c6 {[%emt 0:00:
45]} 7. Nc3 {[%emt 0:05:20]} ({RR} 7. cxd5 exd5 8. O-O O-O 9. d3 Re8 10. Nbd2
Ne5 11. Qc2 Nxf3+ 12. Nxf3 Bg4 13. Rfe1 Bxf3 14. Bxf3 Be5 15. Bxe5 Rxe5 16. d4
Re6 17. b4 a5 18. Qb2 Qb6 19. Rab1 Qxb4 20. Qxb4 axb4 21. Rxb4 Re7 {Ishkhamov,
T (2387)-De Guzman,R (2458)/Reno 2005/EXT 2009/0-1 (39)}) 7... a6 $6 {[%emt 0:
03:52] Trop lent} (7... O-O 8. O-O Re8 9. d4) 8. d4 {[%emt 0:05:19]} O-O {
[%emt 0:00:41]} 9. O-O {[%emt 0:00:14]} b5 {[%emt 0:00:49]} 10. Nd2 $1 {
[%emt 0:08:24][%csl Rc6,Rd6][%cal Ge2e4,Gg2c6] Le Bd6 n'est pas trés bien placé
} (10. c5 $5 Bc7 11. Qc2 Qe7 12. b4 {[%csl Rc6,Rc8];Velikov,P (2443)-Vasilev,M
(2451) BUL-chT Plovdiv 2003 (7) 1-0}) 10... Bb7 {[%emt 0:14:26]} 11. e4 $14 {
[%emt 0:01:09]} Be7 {[%emt 0:11:49]} (11... dxe4 12. Ndxe4 {[%csl Rd6]}) (11...
b4 $5) 12. Re1 {[%emt 0:03:31]} (12. exd5 exd5 13. c5 $14 {[%csl Rb7][%cal
Gf1e1]}) (12. Qe2 $142 {Plus souple que Re1 car Nb6 suivant la même idée que
dans la partie permettrait d'améliorer la position pour les Blancs} Nb6 13. c5
Nbd7 14. e5 Ne8 15. b4 {Après la fermeture du centre la R est mieux placée en
f1 pour soutenir f4 qu'en e1} (15. f4)) 12... Nb6 {[%emt 0:05:25]} 13. c5 {
[%emt 0:05:19]} (13. exd5 cxd5 14. c5 $14 {[%cal Gb3b4]}) 13... Nbd7 {[%emt 0:
00:58]} 14. e5 {[%emt 0:02:02] Les Noirs commencent а manquer d'espace} Ne8 {
[%emt 0:00:10]} 15. b4 {[%emt 0:00:04]} g6 {[%emt 0:03:47]} 16. Nb3 {[%emt 0:
00:36][%csl Rb7,Rc6][%cal Gb3a5]} Ng7 {[%emt 0:02:24]} 17. Na5 {[%emt 0:13:49]}
Qc7 {[%emt 0:00:19]} 18. Bc1 {[%emt 0:01:34]} Rae8 {[%emt 0:05:11]} 19. Nb3 {
[%emt 0:06:48]} f6 {[%emt 0:03:38]} 20. f4 {[%emt 0:02:19]} Bc8 {[%emt 0:00:44]
} 21. Bd2 {[%emt 0:00:25]} (21. Na5) (21. a4 $5 {[%csl Ga1][%cal Ga4b5]}) 21...
Qd8 {[%emt 0:01:46]} 22. Qg4 $1 {[%emt 0:02:55][%csl Re6]} f5 {[%emt 0:01:13]}
23. Qe2 {[%emt 0:00:04]} Qc7 {[%emt 0:00:28] Les Noirs n'ont aucun jeu et ils
doivent se contenter d'attendre une faute adverse.} 24. a4 $1 {[%emt 0:00:06]}
Bb7 {[%emt 0:00:12]} 25. Ra2 $1 {[%emt 0:00:17][%cal Ge1a1] L'ouverture ab5
conduirait а des échanges soulageant la défense} Ra8 {[%emt 0:00:46] (=)} 26.
Rea1 $36 {[%emt 0:00:02]} h6 {[%emt 0:00:53]} 27. Be3 {[%emt 0:01:17]} (27.
axb5 axb5 28. Na5 $1 g5 29. Nxb5 $5 {[%csl Gb4,Gc5]} cxb5 30. Qxb5 Rfb8 31.
Nxb7 Rxa2 32. Rxa2 Rxb7 33. Qa5 $44) 27... Rfe8 {[%emt 0:03:34]} 28. Qd2 {
[%emt 0:00:09]} (28. Ra3 {[%cal Ga1a2,Ge2b2,Gb2a1]} h5 29. R1a2 Kf7 30. Qb2
Rec8 31. Qa1 {La batterie d'Alekhine}) 28... h5 {[%emt 0:01:41]} 29. Bf2 {
[%emt 0:01:24]} (29. h4) 29... Kf7 {[%emt 0:01:05]} (29... h4 $142) 30. h4 $1 {
[%emt 0:03:51]} Rec8 {[%emt 0:02:03]} 31. Bf1 {[%emt 0:00:04]} (31. Na5 $1 {
[%cal Ga2a3,Ga1a2,Gd2b2,Gb2a1,Ga5b7]}) 31... Rcb8 {[%emt 0:03:16]} 32. Ra3 {
[%emt 0:11:36] Enfin} Qc8 {[%emt 0:01:27]} 33. R1a2 {[%emt 0:02:51]} Ne8 {
[%emt 0:00:31]} 34. Be2 {[%emt 0:01:17][%cal Gd2d1,Ge2h5]} Nc7 $1 {[%emt 0:00:
31][%csl Gb5]} 35. Qd1 {[%emt 0:00:02]} Kg7 {[%emt 0:00:22]} (35... Nf8 36.
Bxh5 $5 gxh5 37. Qxh5+ $44 {[%csl Gh4]}) 36. Na5 $1 {[%emt 0:00:16]} (36. Qa1
a5 37. Nxa5 (37. axb5 axb4 38. Rxa8) 37... Rxa5 $1) 36... Nf8 {[%emt 0:00:34]}
37. Qa1 {[%emt 0:00:20]} Kf7 {[%emt 0:00:49]} 38. Kh2 {[%emt 0:01:11]} (38.
axb5 axb5 39. Nb1 Kg7 40. Nd2 Nd7 41. Ndb3) 38... Kg7 {[%emt 0:01:00]} 39. Nb1
{[%emt 0:00:56]} Qe8 {[%emt 0:06:20]} 40. Nxb7 {[%emt 0:00:00]} Rxb7 {[%emt 0:
00:00]} 41. axb5 $6 {[%emt 0:15:30]} cxb5 $1 {[%emt 0:00:16] Les Noirs
obtiennent la case "c6"} 42. Nd2 {[%emt 0:11:04]} Rba7 {[%emt 0:00:37]} 43. Nb3
{[%emt 0:04:20]} Nd7 {[%emt 0:01:30]} 44. Be1 {[%emt 0:00:42]} Nb8 $1 {[%emt 0:
00:11][%cal Gb8c6]} 45. Bc3 {[%emt 0:00:09]} Nc6 {[%emt 0:00:11]} 46. Qf1 {
[%emt 0:00:29][%cal Ge2b5]} Qd8 {[%emt 0:01:22]} 47. Kg2 {[%emt 0:00:15]} Kf7 {
[%emt 0:01:29]} 48. Qe1 {[%emt 0:00:07]} Ke8 {[%emt 0:00:26]} 49. Nc1 {[%emt 0:
02:45]} Kd7 {[%emt 0:00:46]} 50. Nd3 {[%emt 0:00:17]} Qb8 {[%emt 0:00:16]} 51.
Kf2 {[%emt 0:00:17]} Qd8 {[%emt 0:00:18]} 52. Ke3 {[%emt 0:00:02]} Qb8 {
[%emt 0:00:07]} 53. Nf2 {[%emt 0:00:45]} Rb7 {[%emt 0:01:26]} 54. Bd2 {[%emt 0:
00:16]} Rba7 {[%emt 0:00:17]} 55. Qb1 {[%emt 0:00:07]} Qd8 {[%emt 0:00:19]} 56.
Nd1 {[%emt 0:01:25]} Qh8 {[%emt 0:00:42]} 57. Ra1 {[%emt 0:00:05]} Qd8 {
[%emt 0:00:13]} 58. R3a2 {[%emt 0:00:04]} Qc8 {[%emt 0:00:27]} 59. Nc3 {
[%emt 0:00:14]} Qf8 {[%emt 0:00:22]} 60. Qb3 {[%emt 0:00:16]} Qb8 {[%emt 0:00:
41]} 61. Be1 {[%emt 0:01:05]} Qf8 {[%emt 0:00:25]} 62. Bf2 {[%emt 0:01:31]} Qb8
{[%emt 0:01:07]} 63. Kd2 {[%emt 0:00:30]} Qd8 {[%emt 0:00:35]} 64. Ra5 {
[%emt 0:00:39] Le GMI n'arrive pas а progresser mais les Noirs ne vont pas
accepter le sacrifice.} Qb8 {[%emt 0:01:38]} (64... Nxa5 65. Rxa5 $44) 65. Be3
{[%emt 0:01:02]} Qc8 {[%emt 0:01:38]} 66. Qb1 {[%emt 0:00:47]} Qd8 {[%emt 0:00:
35]} 67. R1a2 {[%emt 0:01:03]} Qb8 {[%emt 0:00:25]} 68. Rb2 {[%emt 0:00:06]}
Ke8 {[%emt 0:02:21]} 69. Qa2 {[%emt 0:00:35]} Kd7 {[%emt 0:01:12]} 70. Rb1 {
[%emt 0:00:11]} Qd8 {[%emt 0:02:12]} 71. Rb3 {[%emt 0:00:20]} Qb8 {[%emt 0:00:
18]} 72. Bf3 {[%emt 0:00:18]} Qc8 {[%emt 0:00:44]} 73. Kd3 {[%emt 0:00:40]} Qd8
{[%emt 0:00:21]} 74. Rb1 {[%emt 0:00:10]} Qg8 {[%emt 0:00:23]} 75. Qe2 {
[%emt 0:00:34]} Qc8 {[%emt 0:00:36]} 76. Kc2 {[%emt 0:00:07]} Qb8 {[%emt 0:00:
51]} 77. Kb3 {[%emt 0:00:22]} Qd8 {[%emt 0:00:30]} 78. Rba1 {[%emt 0:00:11]}
Qb8 {[%emt 0:00:34]} 79. Bf2 {[%emt 0:01:27]} Qc8 {[%emt 0:00:47]} 80. Rh1 {
[%emt 0:01:16]} Qf8 {[%emt 0:00:17]} 81. Be3 {[%emt 0:00:39]} Qd8 {[%emt 0:00:
18]} 82. Rha1 {[%emt 0:01:53]} Qb8 {[%emt 0:00:28]} 83. Qf1 {[%emt 0:01:12]}
Qd8 {[%emt 0:00:23]} 84. Be2 {[%emt 0:00:29]} Qb8 {[%emt 0:00:09]} 85. Qg2 {
[%emt 0:01:47]} Qd8 {[%emt 0:00:38]} 86. Bf3 {[%emt 0:01:16]} Qg8 {[%emt 0:00:
10]} 87. Qa2 {[%emt 0:00:06]} Qb8 {[%emt 0:00:12]} 88. Rb1 {[%emt 0:00:29]} Qd8
{[%emt 0:00:08]} 89. Kc2 {[%emt 0:00:15]} Qg8 {[%emt 0:00:06]} 90. Qb3 {
[%emt 0:00:14]} Qf7 {[%emt 0:00:26]} 91. Bf2 {[%emt 0:00:24]} Qg8 {[%emt 0:00:
13]} 92. Re1 {[%emt 0:00:06]} Kc8 {[%emt 0:00:39]} 93. Kb2 {[%emt 0:02:47]}
1/2-1/2

[Event "Zalakaros op 34th"]
[Site "Zalakaros"]
[Date "2015.05.19"]
[Round "6"]
[White "Diermair, Andreas"]
[Black "Wagner, Dennis"]
[Result "0-1"]
[ECO "A13"]
[WhiteElo "2488"]
[BlackElo "2572"]
[Annotator "Wagner,D"]
[PlyCount "100"]
[EventDate "2015.05.14"]
[EventType "swiss"]
[EventRounds "9"]
[EventCountry "HUN"]
[SourceTitle "CBM 167"]
[Source "ChessBase"]
[SourceDate "2015.07.13"]
[SourceVersion "1"]
[SourceVersionDate "2015.07.13"]
[SourceQuality "1"]
[TimeControl "40/5400+30:1800+30"]

{The following game was my best achievement at the strong Open in Zalakaros
and includes brilliant tactical ressources, as well as an interesting and
rather fresh opening scheme.} 1. Nf3 {[%emt 0:00:03]} Nf6 {[%emt 0:00:40]} 2.
c4 {[%emt 0:00:07]} e6 {[%emt 0:00:07]} 3. g3 {[%emt 0:00:40]} d5 {[%emt 0:00:
07]} 4. Bg2 {[%emt 0:00:18]} dxc4 {[%emt 0:01:31]} 5. Qa4+ {[%emt 0:03:27]} Bd7
$5 {[%emt 0:00:10] an interesting and rather unknown setup (a pet variation of
Riazantsev and Buhmann), exactly the right choice of opening against a
theoretically well prepared opponent.} 6. Qxc4 {[%emt 0:00:07]} c5 {[%emt 0:00:
07]} 7. Ne5 {[%emt 0:01:47]} Qc8 $1 {[%emt 0:00:08] Black is giving up the
pair of bishops, but in return gains good central control and an outpost on d4.
} 8. b3 $6 {[%emt 0:10:07] The setup with the bishop on b2 is rather slow and
not dangerous for Black at all. White is now the one fighting for equality.} (
8. Nc3 Nc6 9. Nxd7 Qxd7 10. O-O Rc8 11. d3 Be7 12. Qa4 O-O 13. Bd2 Rfd8 14.
Rfd1 (14. a3 Nd4 15. Qd1 b6 16. Re1 h6 $11 {1/2 (45)-1/2 (45) Yilmaz,M (2565)
-Buhmann,R (2597) Germany 2014}) 14... b6 15. Rab1 Qb7 16. a3 a6 17. Rdc1 b5
18. Qd1 Qb6 $11 {1/2 (38)-1/2 (38) Georgiev,K (2626) -Khairullin,I (2638)
Bilbao 2014}) (8. d3 Nc6 9. Nxd7 Qxd7 10. Nd2 Be7 11. Nf3 O-O 12. O-O Rac8 13.
Bd2 Rfd8 14. Rac1 Nd5 15. Rfd1 Bf6 16. Qb3 Nde7 17. Bc3 Bxc3 18. bxc3 b6 $11 {
½ (77) Bluebaum,M (2537)-Buhmann,R (2601) Verden an der Aller 2014. Black's
play was easy and he managed to push a little longer. This game attracted my
attention for this line.}) 8... Nc6 {[%emt 0:01:29]} 9. Nxd7 {[%emt 0:02:08]}
Qxd7 {[%emt 0:00:06]} 10. Bb2 {[%emt 0:00:30]} Be7 {[%emt 0:01:27]} 11. O-O {
[%emt 0:02:33]} O-O {[%emt 0:01:19]} 12. d3 {[%emt 0:04:17]} Nd4 {[%emt 0:08:
14]} (12... Rac8 $6 {allows White to activate his rook from a1.} 13. Nd2 Nd4
14. Rae1 b5 15. Qc1 {and the coordination of the white pieces is better than
in the game.}) 13. Re1 {[%emt 0:00:23]} Rac8 {[%emt 0:00:41]} 14. Nd2 {[%emt 0:
01:08]} b5 {[%emt 0:06:46] The only sensible plan for White in this kind of
structure is to prepare d4 by playing e3 in order to open the position for the
bishops. For this reason he needs a rook on d1 and so I decided to play b5
immediately to interrupt his coordination.} (14... Rfd8 15. Rad1 $1 {It's
important to get the rook to this square.} Nd5 $5 (15... b5 16. Qc1 $14) 16. a3
$1 (16. e3 {runs into concrete problems.} Nb4 $1 17. a4 $1 (17. a3 b5 18. Qc3
Bf6 $19) (17. exd4 cxd4 18. Qxd4 Qxd4 19. Bxd4 Rxd4 20. Bxb7 Rc7 $15) 17... a6
(17... b6 18. Ne4 Ndc6 $11) 18. a5 Bf8 (18... Ndc6 19. Qg4 Bf8 20. Ne4 $36) 19.
Ne4 Qe7 20. Rd2 Ndc6 21. Ra1 Rd5 $15) 16... Nb5 17. Qc1 Bf6 18. Bxf6 Nxf6 19.
e3 $11) 15. Qc1 {[%emt 0:02:29]} Rfd8 {[%emt 0:01:20] preventing e3.} 16. Ne4 {
[%emt 0:11:28]} (16. e3 $2 Nc6 17. Bf1 Nb4 $17) (16. a3 $5 {is more flexible}
h5 $5 {Black needs to get counterplay, since White has the long-term strategic
pluses.} (16... Nd5 17. Rb1 a6 18. e3 Nc6 19. Rd1 {and White´s play is more
pleasant.}) 17. e3 (17. h4 Ng4 18. Qd1 (18. e3 $2 Nc6 19. Bf1 Nce5 $17) 18...
Nf5 $36) 17... Nc6 18. Bf1 h4 $36) (16. a4 a6 17. axb5 axb5 {[%csl Rb3]}) 16...
c4 $5 {[%emt 0:16:04] An interesting try, but White has a saving oppurtunity.
Anyway it was a good idea to open the position now, because White still has
bad coordination and he only has chances himself, if he manages to consolidate.
} (16... Nd5 $1 {connected with a nice tactical idea this might be objectively
stronger.} 17. e3 (17. Qd1 Nb4 $15) 17... f5 $1 {I did not reckon with this
great possiblity during the game.} (17... Nf5 18. a3 $14) 18. exd4 (18. Nc3 Nb4
19. Rd1 a6 20. Rd2 Ndc6 21. d4 Na5 $15 {[%cal Gc5c4]}) 18... cxd4 19. Qd2 (19.
Qd1 fxe4 20. Bxe4 Bb4 21. Re2 Bc3 $15) 19... Bb4 20. Nf6+ gxf6 21. Bxd5 Bxd2
22. Bxe6+ Qxe6 23. Rxe6 Rc2 24. Rb1 Bc3 25. Bc1 Kf7 26. Ra6 Re8 $15) 17. dxc4 {
[%emt 0:11:34]} bxc4 {[%emt 0:00:36]} 18. Bxd4 $2 {[%emt 0:09:21] I was quite
relieved when confronted with this move, because it seemed rather dubious at
first sight. I took my time for a long think in order to find the most
promising continuation.} (18. bxc4 $1 Qa4 {In order to avoid the exchange sac,
I intended this queen sortie, when I played c4.} (18... Nxe4 19. Bxe4 Bb4 20.
e3 $1 Bxe1 (20... Bd2 21. Qb1) 21. exd4 {During the game I wasn't satisfied
with this position. White has very decent compensation.} Ba5 22. Qc2 $44) 19.
e3 {Only after the game did I realise that this is just possible; not only ...
Nc2 but also ...Rxc4 is refuted by Nc3!} Nxe4 (19... Rxc4 20. Nc3) 20. Bxd4 (
20. Bxe4 Rxc4) 20... Rxc4 21. Qb2 Ba3 22. Qb3 Nd2 23. Qxa4 Rxa4 $11) 18... Nxe4
$1 {[%emt 0:29:10] I had done quite a lot of calculating work before this move
and found many spectacular resources.} (18... Qxd4 19. Rd1 Qe5 (19... Qxd1+ 20.
Qxd1 Rxd1+ 21. Rxd1 c3 22. Nxf6+ gxf6 23. Be4 $1 {is a draw.}) 20. Rxd8+ Rxd8
21. Qc3 Qxc3 22. Nxc3 Rd2 {Black keeps only a slight initiative, that should
evaporate into a draw.}) (18... cxb3 19. Qb2 Qxd4 20. Qxd4 Rxd4 21. Nxf6+ Bxf6
22. axb3 $11) 19. Rd1 {[%emt 0:03:04] the most natural response, where I had
prepared a very beautiful sequence.} (19. e3 {During the game I thought that
this saves White, but there is a fantastic tactical stroke!} Nxf2 $3 20. Kxf2
cxb3 21. Qd1 (21. Qb1 e5 22. Bxe5 Rc2+ 23. Kg1 Qd2 $19) 21... e5 22. Bxe5 Qf5+
23. Qf3 Qxe5 24. axb3 Rc2+ 25. Kg1 Bc5 $17) (19. Be5 {is also not enough.} Qb5
$1 (19... cxb3 20. Qb2) 20. Qf4 (20. Bxe4 Qxe5 $17) 20... Nxf2 $1 21. Kxf2 (21.
Rf1 f6 22. Bd4 Nd3 23. exd3 Rxd4 24. dxc4 (24. Qxd4 Bc5 $19) 24... Qb6 $17)
21... cxb3 22. a4 (22. axb3 Rc5 $1 $17) 22... Qb6+ 23. Kf1 (23. e3 g5 24. Qe4
f5 $19) 23... f6 $17) 19... cxb3 {[%emt 0:00:14]} 20. Qb1 $2 {[%emt 0:08:23]} (
20. Qb2 $1 {is the critical line, but refuted in great style:} Nc3 $3 21. Rd3
$1 (21. Bxc3 Qxd1+ 22. Rxd1 Rxd1+ 23. Bf1 Rxc3 $1 24. Qxc3 bxa2 $19) 21... Ba3
$3 {the second point.} 22. Qxc3 $1 {This is definitely the best saving chance.}
(22. Qxa3 Nxe2+ 23. Kh1 bxa2 $19) 22... Rxc3 23. Bxc3 Qc7 24. Rxd8+ Qxd8 25.
axb3 Bc5 $15 {It's very difficult to win such a position.}) 20... Nc3 {[%emt 0:
06:21]} 21. Bxc3 {[%emt 0:00:09]} bxa2 $1 {[%emt 0:03:50] An important
intermediate move, maximising the advantage.} (21... Qxd1+ 22. Qxd1 Rxd1+ 23.
Rxd1 Rxc3 24. axb3 Rxb3 25. Rd7 Bc5 $15 {is not so clear.}) 22. Qd3 {[%emt 0:
08:34]} (22. Qb3 Qxd1+ $1 23. Rxd1 Rxd1+ 24. Qxd1 Rxc3 $19 {The second
important line, consisting of a queen sac.}) 22... Qxd3 {[%emt 0:00:07]} 23.
exd3 {[%emt 0:02:22]} Rxc3 {[%emt 0:00:06]} 24. Rxa2 {[%emt 0:00:05]} Bc5 $1 {
[%emt 0:00:56] With a pawn up and a very bad structure on White's side, this
ending is technically won.} 25. Bf1 {[%emt 0:02:34]} g6 {[%emt 0:01:07]} 26.
Rb1 {[%emt 0:00:41]} Bb6 {[%emt 0:00:29]} 27. Kg2 {[%emt 0:01:26]} Rdc8 {
[%emt 0:00:53]} 28. Be2 {[%emt 0:01:11]} Kg7 {[%emt 0:00:46]} 29. Rb4 {[%emt 0:
02:01]} Rc2 {[%emt 0:01:49]} 30. Rbb2 {[%emt 0:00:32]} Rc1 {[%emt 0:00:37]} 31.
Rb4 {[%emt 0:01:01]} R8c2 {[%emt 0:00:53]} 32. Rbb2 {[%emt 0:02:25]} Rxb2 {
[%emt 0:02:50]} 33. Rxb2 {[%emt 0:00:01]} Kf6 {[%emt 0:00:15]} (33... e5 $5 34.
Kf3 f5 35. h4 Bd4 36. Rb7+ (36. Ra2 Rg1 37. Rc2 a5 $19) 36... Kh6 37. g4 fxg4+
38. Kxg4 Bxf2 $19) 34. f4 {[%emt 0:02:28]} Ke7 {[%emt 0:05:33]} 35. Kf3 {
[%emt 0:01:52]} Kd6 {[%emt 0:00:08]} 36. Ke4 $6 {[%emt 0:02:05] Losing another
pawn.} (36. Rb4 Kc5 37. Ra4 Kd5 (37... a5 38. d4+) 38. Rb4 Rc2 $19) (36. g4 f5
37. gxf5 exf5 $19) 36... Rh1 {[%emt 0:01:25]} 37. h4 {[%emt 0:00:19]} f5+ {
[%emt 0:02:56]} 38. Kf3 {[%emt 0:00:09]} Rh2 {[%emt 0:00:31]} 39. g4 {[%emt 0:
00:04]} Rxh4 {[%emt 0:02:50]} 40. Kg2 {[%emt 0:00:00]} fxg4 {[%emt 0:00:00]}
41. Rb5 {[%emt 0:06:47]} h5 {[%emt 0:05:28]} 42. Rg5 {[%emt 0:00:31]} Be3 {
[%emt 0:00:34]} 43. Rxg6 {[%emt 0:00:16]} Bxf4 {[%emt 0:00:20]} 44. d4 {
[%emt 0:00:25]} Rh2+ {[%emt 0:00:14]} 45. Kf1 {[%emt 0:00:01]} Kd5 {[%emt 0:00:
57]} 46. Ba6 {[%emt 0:00:18]} g3 {[%emt 0:02:14]} 47. Bb7+ {[%emt 0:00:27]}
Kxd4 {[%emt 0:00:19]} 48. Rxe6 {[%emt 0:00:08]} Rf2+ {[%emt 0:00:17]} 49. Kg1 {
[%emt 0:00:26]} Be3 {[%emt 0:01:12]} 50. Kh1 {[%emt 0:00:17]} Rh2# 0-1